Workbook

Sheet Общий рейтинг
A1: Итоговый оценочный лист Отборочного этапа III Всероссийского конкурса по прототипированию «Полет инженерных идей»
A2: № п/п | B2: ФИО 1 участника | C2: ФИО 2 участника | D2: ФИО 3 участника | E2: Возрастная категория | F2: Анализ аналогов | G2: Формулировка целей и задач | H2: Раскрытие замысла проекта | I2: Предоставление детальной проработки идеи | J2: Перспектива развития и реализация проекта | K2: Наличие прототипа | L2: Техническая эстетика | M2: Защита проекта | N2: Наличие рабочих файлов | O2: Сумма | P2: Работа была сдана в срок | Q2: Итоговый балл | R2: Статус
A3: 1 | B3: Нейский Артём Александрович | C3: Рахчеев Никита Сергеевич | D3: Черепанова Варвара Николаевна | E3: 5-8 класс | F3: 2.5 | G3: 3 | H3: 3 | I3: 0 | J3: 2.5 | K3: 1.5 | L3: 1.5 | M3: 5 | N3: 3 | O3: =SUM(F3:N3) -> 22 | P3: 0.5 | Q3: =SUM(O3:P3) -> 22.5 | R3: Прошли в финал
A4: 2 | B4: Филиппова Кира Андреевна | C4: Молодцова Елизавета Сергеевна | E4: 5-8 класс | F4: 1.5 | G4: 3 | H4: 3 | I4: 0 | J4: 2.5 | K4: 0 | L4: 3 | M4: 5 | N4: 3 | O4: 21 | P4: 0.5 | Q4: 21.5 | R4: Прошли в финал
A5: 3 | B5: Ханова Елизавета Алексеевна | C5: Панов Ростислав Владимирович | E5: 5-8 класс | F5: 1.5 | G5: 3 | H5: 2.5 | I5: 0 | J5: 2.5 | K5: 0.5 | L5: 2.5 | M5: 5 | N5: 3 | O5: =SUM(F5:N5) -> 20.5 | P5: 0.5 | Q5: 21 | R5: Прошли в финал
A6: 4 | B6: Баженова Валерия | E6: 5-8 класс | F6: 2 | G6: 3 | H6: 3 | I6: 0 | J6: 2.5 | K6: 2.5 | L6: 1 | M6: 3.5 | N6: 2.5 | O6: =SUM(F6:N6) -> 20 | P6: 0.5 | Q6: 20.5 | R6: Прошли в финал
A7: 5 | B7: Буторина София Игоревна | C7: Перевозкина Анастасия Викторовна | D7: Перминова Мария Владимировна | E7: 5-8 класс | F7: 1.5 | G7: 2.5 | H7: 2.5 | I7: 0 | J7: 1.5 | K7: 3 | L7: 2 | M7: 4.5 | N7: 2.5 | O7: =SUM(F7:N7) -> 20 | P7: 0.5 | Q7: 20.5 | R7: Прошли в финал
A8: 6 | B8: Кошелев Евгений Вячеславович | C8: Нияз Шайхутдинов Риназович | D8: Япаров Кирилл Алексеевич | E8: 5-8 класс | F8: 2 | G8: 2.5 | H8: 2.5 | I8: 0 | J8: 2 | K8: 3 | L8: 2 | M8: 3 | N8: 3 | O8: 20 | P8: 0.5 | Q8: 20.5 | R8: Прошли в финал
A9: 7 | B9: Юношев Михаил Михайлович | C9: Тимашев Артем Иванович | E9: 5-8 класс | F9: 1 | G9: 2 | H9: 3 | I9: 0 | J9: 2.5 | K9: 3 | L9: 2 | M9: 3.5 | N9: 3 | O9: 20 | P9: 0.5 | Q9: 20.5 | R9: Прошли в финал
A10: 8 | B10: Сайфутдинова Сафина | C10: Трихаева Александра | D10: Данилова Вера | E10: 5-8 класс | F10: 1.5 | G10: 2.25 | H10: 2.25 | I10: 0 | J10: 1 | K10: 3 | L10: 2.5 | M10: 4 | N10: 3 | O10: 19.5 | P10: 0 | Q10: 19.5 | R10: Прошли в финал
A11: 9 | B11: Велес Данихно | E11: 5-8 класс | F11: 2.5 | G11: 2.5 | H11: 2.5 | I11: 0 | J11: 2 | K11: 0 | L11: 2 | M11: 3.5 | N11: 3 | O11: =SUM(F11:N11) -> 18 | P11: 0.5 | Q11: 18.5 | R11: Прошли в финал
A12: 10 | B12: Крайнова Алена Алексеевна | E12: 5-8 класс | F12: 1 | G12: 1.5 | H12: 3 | I12: 0 | J12: 1.5 | K12: 3 | L12: 2 | M12: 4 | N12: 2 | O12: 18 | P12: 0.5 | Q12: 18.5 | R12: Прошли в финал
A13: 11 | B13: Талбутдинов Матвей | C13: Соломенникова Софья | D13: Акулов Тимофей | E13: 5-8 класс | F13: 1 | G13: 2.5 | H13: 2.5 | I13: 0 | J13: 2 | K13: 3 | L13: 2 | M13: 3.5 | N13: 1 | O13: =SUM(F13:N13) -> 17.5 | P13: 0.5 | Q13: 18 | R13: Прошли в финал
A14: 12 | B14: Целищев Кирилл | C14: Якубовская Арина | E14: 5-8 класс | F14: 1 | G14: 2 | H14: 3 | I14: 0 | J14: 2.5 | K14: 0 | L14: 3 | M14: 3.5 | N14: 3 | O14: 17.5 | P14: 0.5 | Q14: 18 | R14: Прошли в финал
A15: 13 | B15: Антропов Александр Владимирович | E15: 5-8 класс | F15: 2.5 | G15: 2 | H15: 3 | I15: 0 | J15: 2 | K15: 0 | L15: 1.5 | M15: 3 | N15: 3 | O15: =SUM(F15:N15) -> 17 | P15: 0.5 | Q15: 17.5 | R15: Прошли в финал
A16: 14 | B16: Гурова Полина Ивановна | E16: 5-8 класс | F16: 1 | G16: 1.5 | H16: 2 | I16: 0 | J16: 2.5 | K16: 2.5 | L16: 1.5 | M16: 3 | N16: 3 | O16: 17 | P16: 0.5 | Q16: 17.5 | R16: Прошли в финал
A17: 15 | B17: Дергачева Мария Максимовна | C17: Заякин Павел Михайлович | E17: 5-8 класс | F17: 0.5 | G17: 2 | H17: 2 | I17: 0 | J17: 1.5 | K17: 3 | L17: 2 | M17: 3 | N17: 3 | O17: =SUM(F17:N17) -> 17 | P17: 0.5 | Q17: 17.5 | R17: Прошли в финал
A18: 28 | B18: Шаймарданов Даниль | C18: Салин Максим | D18: Рошко Артём | E18: 5-8 класс | F18: 2 | G18: 1.25 | H18: 3 | I18: 0 | J18: 1.5 | K18: 2 | L18: 1 | M18: 4 | N18: 2 | O18: =SUM(F18:N18) -> 16.75 | P18: 0.5 | Q18: 17.25 | R18: Прошли в финал
A19: 16 | B19: Астафьев Владислав Витальевич | E19: 5-8 класс | F19: 2 | G19: 3 | H19: 2.5 | I19: 0 | J19: 1.5 | K19: 0 | L19: 1.5 | M19: 3.5 | N19: 2 | O19: =SUM(F19:N19) -> 16 | P19: 0.5 | Q19: 16.5 | R19: Прошли в финал
A20: 17 | B20: Волков Даниил | C20: Бастрикова Елизавета | E20: 5-8 класс | F20: 1.25 | G20: 1 | H20: 2 | I20: 0 | J20: 2 | K20: 2 | L20: 2 | M20: 3 | N20: 2 | O20: 15.25 | P20: 0.5 | Q20: 15.75 | R20: Прошли в финал
A21: 18 | B21: Антонов Алексей | C21: Курманин Александр | E21: 5-8 класс | F21: 1 | G21: 0.5 | H21: 2.5 | I21: 0 | J21: 2.5 | K21: 0 | L21: 1 | M21: 4 | N21: 3 | O21: 14.5 | P21: 0.5 | Q21: 15 | R21: Прошли в финал
A22: 19 | B22: Баранов Александр Иванович | C22: Залогинов Иван Сергеевич | D22: Слесаренко Андрей Юрьевич | E22: 5-8 класс | F22: 2 | G22: 1.5 | H22: 3 | I22: 0 | J22: 1 | K22: 0.5 | L22: 1 | M22: 2.5 | N22: 3 | O22: =SUM(F22:N22) -> 14.5 | P22: 0.5 | Q22: 15 | R22: Прошли в финал
A23: 21 | B23: Филатова Алена | C23: Артюх Глеб | D23: Астафьев Кирилл | E23: 5-8 класс | F23: 2 | G23: 1.5 | H23: 2 | I23: 0 | J23: 2 | K23: 0 | L23: 2 | M23: 3 | N23: 2 | O23: 14.5 | P23: 0.5 | Q23: 15 | R23: Прошли в финал
A24: 20 | B24: Сорина Екатерина Вадимовна | E24: 5-8 класс | F24: 1.5 | G24: 3 | H24: 2 | I24: 0 | J24: 1.5 | K24: 2 | L24: 2 | M24: 1 | N24: 1.5 | O24: 14.5 | P24: 0 | Q24: 14.5 | R24: Прошли в финал
A25: 22 | B25: Колмакова Александра Германовна | C25: Илюшкина Кира Сергеевна | D25: Горозовская Маргарита Вадимовна | E25: 5-8 класс | F25: 2 | G25: 1.5 | H25: 1.5 | I25: 0 | J25: 1 | K25: 0 | L25: 1.5 | M25: 3.5 | N25: 3 | O25: =SUM(F25:N25) -> 14 | P25: 0.5 | Q25: 14.5 | R25: Прошли в финал
A26: 23 | B26: Папулов Всеволод Владиславович | E26: 5-8 класс | F26: 2 | G26: 2 | H26: 2 | I26: 0 | J26: 2 | K26: 2 | L26: 1 | M26: 1 | N26: 2 | O26: 14 | P26: 0.5 | Q26: 14.5 | R26: Прошли в финал
A27: 24 | B27: Чернов Эльдар Витальевич | C27: Котов Евгений Николаевич | E27: 5-8 класс | F27: 2 | G27: 1 | H27: 2 | I27: 0 | J27: 1 | K27: 2 | L27: 1 | M27: 3 | N27: 2 | O27: 14 | P27: 0.5 | Q27: 14.5 | R27: Прошли в финал
A28: 25 | B28: Мухутдинов Денис Шамильевич | E28: 5-8 класс | F28: 1 | G28: 2.25 | H28: 1.25 | I28: 0 | J28: 1.5 | K28: 2.5 | L28: 2 | M28: 1 | N28: 2 | O28: 13.5 | P28: 0 | Q28: 13.5 | R28: Резерв
A29: 26 | B29: Макаричева Лиля | C29: Храмов Дима | E29: 5-8 класс | F29: 1 | G29: 2 | H29: 1.5 | I29: 0 | J29: 1 | K29: 0 | L29: 2.5 | M29: 3 | N29: 2 | O29: 13 | P29: 0.5 | Q29: 13.5 | R29: Резерв
A30: 27 | B30: Берандзе Алина Шакроевна | C30: Яковлева Ксения Александровна | E30: 5-8 класс | F30: 1.25 | G30: 1.5 | H30: 1 | I30: 0 | J30: 1 | K30: 2 | L30: 1 | M30: 3 | N30: 2 | O30: 12.75 | P30: 0.5 | Q30: 13.25 | R30: Резерв
A31: 29 | B31: Абдуллаев Руслан Ринатович | C31: Давыдов Антон Константинович | D31: Михалицына Валерия | E31: 5-8 класс | F31: 1 | G31: 1 | H31: 1.5 | I31: 0 | J31: 2 | K31: 0.5 | L31: 2.5 | M31: 3 | N31: 1 | O31: =SUM(F31:N31) -> 12.5 | P31: 0.5 | Q31: 13 | R31: Резерв
A32: 30 | B32: Авдалян Тигран Аликович | C32: Алтынбаев Асхат Маратович | D32: Хакимов Тимур Ильназович | E32: 5-8 класс | F32: 1.5 | G32: 1 | H32: 2 | I32: 0 | J32: 2 | K32: 0 | L32: 2 | M32: 1 | N32: 3 | O32: 12.5 | P32: 0.5 | Q32: 13 | R32: Резерв
A33: 31 | B33: Габдуллин Саид Ильдарович | E33: 5-8 класс | F33: 1 | G33: 1 | H33: 2.5 | I33: 0 | J33: 2 | K33: 0 | L33: 2 | M33: 3 | N33: 1 | O33: 12.5 | P33: 0.5 | Q33: 13 | R33: Резерв
A34: 32 | B34: Шаталова Ирина Дмитриевна | C34: Панин Максим Дмитриевич | E34: 5-8 класс | F34: 1 | G34: 0 | H34: 2.5 | I34: 0 | J34: 2 | K34: 0 | L34: 2 | M34: 3 | N34: 2 | O34: =SUM(F34:N34) -> 12.5 | P34: 0.5 | Q34: 13 | R34: Резерв
A35: 33 | B35: Елеуров Рухшар | E35: 5-8 класс | F35: 1.25 | G35: 2 | H35: 2 | I35: 0 | J35: 2 | K35: 2 | L35: 2 | M35: 1 | N35: 0 | O35: 12.25 | P35: 0.5 | Q35: =SUM(O35:P35) -> 12.75 | R35: Резерв
A36: 34 | B36: Тимаков Даниил | E36: 5-8 класс | F36: 1 | G36: 2 | H36: 2.5 | I36: 0 | J36: 1.5 | K36: 0 | L36: 1 | M36: 2 | N36: 2 | O36: 12 | P36: 0.5 | Q36: 12.5 | R36: Резерв
A37: 35 | B37: Бондарнеко Тимофей Александрович | E37: 5-8 класс | F37: 1 | G37: 1 | H37: 1 | I37: 0 | J37: 1.5 | K37: 1 | L37: 1 | M37: 3 | N37: 2 | O37: 11.5 | P37: 0.5 | Q37: 12 | R37: Резерв
A38: 36 | B38: Быковский Александр Вячеславович | C38: Лубенец Захар Евгеньевич | E38: 5-8 класс | F38: 0.85 | G38: 1 | H38: 1 | I38: 0 | J38: 1.5 | K38: 2 | L38: 1 | M38: 1 | N38: 2 | O38: 10.35 | P38: 0.5 | Q38: 10.85 | R38: Спасибо за участие
A39: 37 | B39: Дубинина Вера Владимировна | C39: Золотарев Дмитрий Дмитриевич | D39: Бухмаров Илья Владимирович | E39: 5-8 класс | F39: 1.25 | G39: 1 | H39: 1 | I39: 0 | J39: 1 | K39: 1 | L39: 1 | M39: 2 | N39: 2 | O39: 10.25 | P39: 0.5 | Q39: 10.75 | R39: Спасибо за участие
A40: 38 | B40: Кокорин Дмитрий Павлович | E40: 5-8 класс | F40: 1 | G40: 1 | H40: 0.5 | I40: 0 | J40: 1 | K40: 0 | L40: 1 | M40: 2.5 | N40: 3 | O40: =SUM(F40:N40) -> 10 | P40: 0.5 | Q40: 10.5 | R40: Спасибо за участие
A41: 39 | B41: Филиппова Софья Андреевна | C41: Нугуманова Энжия Ильнуровна | E41: 5-8 класс | F41: 1.25 | G41: 1.5 | H41: 1 | I41: 0 | J41: 1 | K41: 2 | L41: 1 | M41: 2 | N41: 0 | O41: 9.75 | P41: 0.5 | Q41: 10.25 | R41: Спасибо за участие
A42: 40 | B42: Ложкина Полина Романовна | C42: Прилукова Ирина Алексеевна | D42: Букина Дарья Андреевна | E42: 5-8 класс | F42: 1.25 | G42: 1.5 | H42: 1 | I42: 0 | J42: 1 | K42: 1 | L42: 1.5 | M42: 2 | N42: 0 | O42: 9.25 | P42: 0.5 | Q42: 9.75 | R42: Спасибо за участие
A43: 41 | B43: Жилин Александр Андреевич | C43: Тимофеев Михаил Александрович | E43: 5-8 класс | F43: 1 | G43: 1 | H43: 1 | I43: 0 | J43: 1 | K43: 1 | L43: 1 | M43: 2 | N43: 1 | O43: 9 | P43: 0.5 | Q43: 9.5 | R43: Спасибо за участие
A44: 42 | B44: Киселев Максим Алексеевич | C44: Петрушин Никита Александрович | D44: Михаил Белов Евгеньевич | E44: 5-8 класс | F44: 1 | G44: 2 | H44: 2.5 | I44: 0 | J44: 1.5 | K44: 0 | L44: 1 | M44: 0 | N44: 1 | O44: 9 | P44: 0.5 | Q44: 9.5 | R44: Спасибо за участие
A45: 43 | B45: Кузнецов Андрей Сергеевич | C45: Своровской Кирилл Андреевич | D45: Жмаев Тимофей Александрович | E45: 5-8 класс | F45: 1 | G45: 1 | H45: 3 | I45: 0 | J45: 1.5 | K45: 0 | L45: 1 | M45: 0 | N45: 1 | O45: 8.5 | P45: 0.5 | Q45: 9 | R45: Спасибо за участие
A46: 44 | B46: Заривный Влад | C46: Резвухин Максим | D46: Эйрих Дмитрий | E46: 5-8 класс | F46: 1.25 | G46: 1 | H46: 1 | I46: 0 | J46: 1 | K46: 1 | L46: 0 | M46: 3 | N46: 0 | O46: 8.25 | P46: 0.5 | Q46: 8.75 | R46: Спасибо за участие
A47: 45 | B47: Коржов Владимир | C47: Абжинова Анна | E47: 5-8 класс | F47: 1 | G47: 1.5 | H47: 2 | I47: 0 | J47: 1.5 | K47: 0 | L47: 1 | M47: 0 | N47: 1 | O47: 8 | P47: 0.5 | Q47: 8.5 | R47: Спасибо за участие
A48: 46 | B48: Сухотчкенко Валерий | C48: Редькин Владимир | E48: 5-8 класс | F48: 1 | G48: 1 | H48: 1 | I48: 0 | J48: 0.5 | K48: 1 | L48: 1 | M48: 2 | N48: 0 | O48: 7.5 | P48: 0.5 | Q48: 8 | R48: Спасибо за участие
A49: 47 | B49: Уваров Кирилл Константинович | C49: Сайдяшев Иван Алексеевич | D49: Чаванин Иван Андреевич | E49: 5-8 класс | F49: 0.5 | G49: 1 | H49: 1 | I49: 0 | J49: 1 | K49: 1 | L49: 1 | M49: 2 | N49: 0 | O49: 7.5 | P49: 0.5 | Q49: 8 | R49: Спасибо за участие
A50: 48 | B50: Бобылева Анастасия Андреевна | C50: Вахрамеева Олеся Романовна | D50: Фирулёва Полина Константиновна | E50: 5-8 класс | F50: 1 | G50: 1.5 | H50: 0.5 | I50: 0 | J50: 0.5 | K50: 1 | L50: 0.5 | M50: 2 | N50: 0 | O50: 7 | P50: 0.5 | Q50: 7.5 | R50: Спасибо за участие
A51: 49 | B51: Голоюхова Виктория Александровна | E51: 5-8 класс | F51: 0 | G51: 1 | H51: 0.75 | I51: 0 | J51: 1 | K51: 1 | L51: 1 | M51: 0 | N51: 0 | O51: 4.75 | P51: 0.5 | Q51: 5.25 | R51: Спасибо за участие
A52: 50 | B52: Коржов Владимир Денисович | C52: Абжинова Анна | E52: 5-8 класс | F52: 0 | G52: 0 | H52: 0 | I52: 0 | J52: 0 | K52: 0 | L52: 0 | M52: 0 | N52: 0 | O52: 0 | P52: 0.5 | Q52: 0.5 | R52: Спасибо за участие
A53: 51 | B53: Храмов Дима | C53: Макаричева Лиля | E53: 5-8 класс | F53: 0 | G53: 0 | H53: 0 | I53: 0 | J53: 0 | K53: 0 | L53: 0 | M53: 0 | N53: 0 | O53: 0 | P53: 0.5 | Q53: 0.5 | R53: Спасибо за участие
A54: 52 | B54: Кочетков Никита | C54: Аникина Алина | D54: Сергеева Екатерина | E54: 9-11 класс | F54: 1 | G54: 3 | H54: 3 | I54: 0 | J54: 3 | K54: 3 | L54: 3 | M54: 3 | N54: 3 | O54: =SUM(F54:N54) -> 22 | P54: 0.5 | Q54: 22.5 | R54: Прошли в финал
A55: 53 | B55: Севостьянов Илья Владимирович | C55: Захарова Дарья Михайловна | D55: Шуляк Платон Андреевич | E55: 9-11 класс | F55: 2 | G55: 2.75 | H55: 3 | I55: 0 | J55: 2 | K55: 3 | L55: 3 | M55: 2.5 | N55: 3 | O55: 21.25 | P55: 0.5 | Q55: 21.75 | R55: Прошли в финал
A56: 54 | B56: Бодров Никита Александрович | C56: Малкин Егор Михайлович | E56: 9-11 класс | F56: 2 | G56: 3 | H56: 2.5 | I56: 0 | J56: 2 | K56: 2.5 | L56: 3 | M56: 2.75 | N56: 3 | O56: 20.75 | P56: 0.5 | Q56: 21.25 | R56: Прошли в финал
A57: 55 | B57: Грачев Роман Игоревич | C57: Галиева Регина Радиковна | D57: Головлёва Алёна Михайловна | E57: 9-11 класс | F57: 2 | G57: 3 | H57: 3 | I57: 0 | J57: 2 | K57: 1.5 | L57: 3 | M57: 3 | N57: 3 | O57: 20.5 | P57: 0.5 | Q57: 21 | R57: Прошли в финал
A58: 56 | B58: Моторин Данил Алексеевич | C58: Агапов Михаил Андреевич | E58: 9-11 класс | F58: 2 | G58: 2 | H58: 2.5 | I58: 0 | J58: 2 | K58: 3 | L58: 3 | M58: 2.5 | N58: 3 | O58: 20 | P58: 0.5 | Q58: 20.5 | R58: Прошли в финал
A59: 57 | B59: Мария Жарикова | C59: Арина Ослопова | D59: Максим Попов | E59: 9-11 класс | F59: 2 | G59: 2 | H59: 1 | I59: 0 | J59: 3 | K59: 3 | L59: 2.5 | M59: 3 | N59: 3 | O59: 19.5 | P59: 0.5 | Q59: 20 | R59: Прошли в финал
A60: 58 | B60: Акрамов Дмитрий Денисович | C60: Гордиенко Егор Сергеевич | E60: 9-11 класс | F60: 2 | G60: 2 | H60: 2.5 | I60: 0 | J60: 1 | K60: 3 | L60: 2 | M60: 3.5 | N60: 3 | O60: 19 | P60: 0.5 | Q60: 19.5 | R60: Прошли в финал
A61: 59 | B61: Галиева Регина | C61: Грачев Роман | D61: Головлева Алена | E61: 9-11 класс | F61: 1 | G61: 3 | H61: 3 | I61: 0 | J61: 3 | K61: 0 | L61: 3 | M61: 3 | N61: 3 | O61: =SUM(F61:N61) -> 19 | P61: 0.5 | Q61: 19.5 | R61: Прошли в финал
A62: 60 | B62: Ростислав Пигин | C62: Вячеслав Мошкин | E62: 9-11 класс | F62: 2 | G62: 3 | H62: 2 | I62: 0 | J62: 2 | K62: 2 | L62: 2 | M62: 3 | N62: 3 | O62: =SUM(F62:N62) -> 19 | P62: 0.5 | Q62: 19.5 | R62: Прошли в финал
A63: 61 | B63: Серебряков Дмитрий Викторович | E63: 9-11 класс | F63: 2 | G63: 2.5 | H63: 2.5 | I63: 0 | J63: 1 | K63: 2.5 | L63: 2.5 | M63: 3.5 | N63: 2.5 | O63: 19 | P63: 0.5 | Q63: 19.5 | R63: Прошли в финал
A64: 62 | B64: Кабаненко Никита Константинович | C64: Деревянных Владимир Семенович | D64: Малинин Данила Григорьевич | E64: 9-11 класс | F64: 2 | G64: 2.5 | H64: 2.75 | I64: 0 | J64: 2 | K64: 1 | L64: 2.5 | M64: 3 | N64: 3 | O64: =SUM(F64:N64) -> 18.75 | P64: 0.5 | Q64: 19.25 | R64: Прошли в финал
A65: 63 | B65: Иванова Екатерина Александровна | C65: Воронцова Екатерина Сергеевна | E65: 9-11 класс | F65: 2 | G65: 2.5 | H65: 3 | I65: 0 | J65: 2 | K65: 1.5 | L65: 1.5 | M65: 4 | N65: 2 | O65: 18.5 | P65: 0.5 | Q65: 19 | R65: Прошли в финал
A66: 64 | B66: Каримуллин Семен Сергеевич | C66: Круглова Анастасия Борисовна | E66: 9-11 класс | F66: 2 | G66: 2.5 | H66: 2.25 | I66: 0 | J66: 2 | K66: 1.5 | L66: 2.5 | M66: 2.5 | N66: 3 | O66: =SUM(F66:N66) -> 18.25 | P66: 0.5 | Q66: 18.75 | R66: Прошли в финал
A67: 65 | B67: Суворов Георгий Вячеславович | C67: Новиков Тимофей Дмитриевич | D67: Проскурин Иван Андреевич | E67: 9-11 класс | F67: 1 | G67: 1.5 | H67: 3 | I67: 0 | J67: 1 | K67: 3 | L67: 2 | M67: 4 | N67: 2.5 | O67: 18 | P67: 0.5 | Q67: =SUM(O67:P67) -> 18.5 | R67: Прошли в финал
A68: 66 | B68: Ларина Арина Юрьевна | C68: Черенкова Анастасия Викторовна | E68: 9-11 класс | F68: 2 | G68: 2.5 | H68: 2 | I68: 0 | J68: 0.5 | K68: 2.5 | L68: 2 | M68: 3.5 | N68: 2.5 | O68: 17.5 | P68: 0.5 | Q68: 18 | R68: Прошли в финал
A69: 67 | B69: Нуриев Салават Маратович | C69: Посмыгаев Илья Сергеевич | D69: Шуралёва Елизавета Максимовна | E69: 9-11 класс | F69: 0.5 | G69: 2 | H69: 1 | I69: 0 | J69: 0.5 | K69: 3 | L69: 3 | M69: 4 | N69: 3 | O69: 17 | P69: 0.5 | Q69: 17.5 | R69: Прошли в финал
A70: 68 | B70: Парфиненко Егор Сергеевич | C70: Хиштова Екатерина Казбековна | D70: Пащенко Дмитрий Евгеньевич | E70: 9-11 класс | F70: 1 | G70: 2.5 | H70: 1.5 | I70: 0 | J70: 2.25 | K70: 2.25 | L70: 2.5 | M70: 2 | N70: 3 | O70: =SUM(F70:N70) -> 17 | P70: 0.5 | Q70: 17.5 | R70: Прошли в финал
A71: 69 | B71: Тулькубаев Марат Ильдарович | C71: Малышев Никита Александрович | E71: 9-11 класс | F71: 2 | G71: 2 | H71: 2 | I71: 0 | J71: 2 | K71: 2 | L71: 2 | M71: 2 | N71: 3 | O71: 17 | P71: 0.5 | Q71: 17.5 | R71: Прошли в финал
A72: 70 | B72: Хоруженко Ярослав Александрович | C72: Хохлов Андрей Викторович | E72: 9-11 класс | F72: 2 | G72: 1.75 | H72: 1.5 | I72: 0 | J72: 1 | K72: 3 | L72: 2.75 | M72: 2 | N72: 3 | O72: 17 | P72: 0.5 | Q72: 17.5 | R72: Прошли в финал
A73: 96 | B73: Шутов Дмитрий | C73: Мякишева Александра | E73: 9-11 класс | F73: 3 | G73: 3 | H73: 1.5 | I73: 0 | J73: 2 | K73: 3 | L73: 1 | M73: 0.5 | N73: 3 | O73: 17 | P73: 0.5 | Q73: 17.5 | R73: Прошли в финал
A74: 71 | B74: Вавилов Никита Олегович | C74: Реган Виктор Владиславович | D74: Соловьёв Андрей Ильич | E74: 9-11 класс | F74: 2 | G74: 2.5 | H74: 1 | I74: 0 | J74: 1.5 | K74: 2 | L74: 2.5 | M74: 2.25 | N74: 3 | O74: 16.75 | P74: 0.5 | Q74: 17.25 | R74: Прошли в финал
A75: 72 | B75: Галлямов Камиль Ленарович | C75: Якупов Динар Раисович | D75: Макарова Анастасия Евгеньевна | E75: 9-11 класс | F75: 2 | G75: 3 | H75: 1 | I75: 0 | J75: 2 | K75: 1.5 | L75: 3 | M75: 1 | N75: 3 | O75: 16.5 | P75: 0.5 | Q75: 17 | R75: Прошли в финал
A76: 73 | B76: Кирпиченко Вячеслав | C76: Отавин Евгений | E76: 9-11 класс | F76: 3 | G76: 3 | H76: 3 | I76: 0 | J76: 1 | K76: 0 | L76: 1 | M76: 2.5 | N76: 3 | O76: 16.5 | P76: 0.5 | Q76: 17 | R76: Прошли в финал
A77: 74 | B77: Абдуллаев Рамиль Ринатович | C77: Миронов Александр Алексеевич | E77: 9-11 класс | F77: 1.5 | G77: 3 | H77: 1 | I77: 0 | J77: 0.5 | K77: 2.5 | L77: 1.5 | M77: 3 | N77: 3 | O77: 16 | P77: 0.5 | Q77: 16.5 | R77: Прошли в финал
A78: 75 | B78: Гених Дмитрий Сергеевич | C78: Фролов Савелий Вадимович | E78: 9-11 класс | F78: 0.25 | G78: 1.5 | H78: 2.25 | I78: 0 | J78: 0.75 | K78: 2.75 | L78: 2.5 | M78: 2.75 | N78: 3 | O78: 15.75 | P78: 0.5 | Q78: 16.25 | R78: Прошли в финал
A79: 76 | B79: Паньков Евгений Александрович | C79: Хренов Илья Андреевич | D79: Галактионов Сергей Алексеевич | E79: 9-11 класс | F79: 1 | G79: 2 | H79: 1.75 | I79: 0 | J79: 0.75 | K79: 2.25 | L79: 2 | M79: 3 | N79: 3 | O79: 15.75 | P79: 0.5 | Q79: 16.25 | R79: Прошли в финал
A80: 77 | B80: Кильдюшкин Владимир | C80: Буданова Алина | E80: 9-11 класс | F80: 1 | G80: 3 | H80: 3 | I80: 0 | J80: 1.5 | K80: 0 | L80: 1 | M80: 3 | N80: 3 | O80: =SUM(F80:N80) -> 15.5 | P80: 0 | Q80: 15.5 | R80: Резерв
A81: 78 | B81: Олейник София Сергеевна | C81: Кожевников Владислав Александрович | E81: 9-11 класс | F81: 2 | G81: 2 | H81: 2.25 | I81: 0 | J81: 1.25 | K81: 1.5 | L81: 2 | M81: 2 | N81: 2 | O81: =SUM(F81:N81) -> 15 | P81: 0.5 | Q81: 15.5 | R81: Резерв
A82: 79 | B82: Федоренко Владислав | E82: 9-11 класс | F82: 1 | G82: 1 | H82: 3 | I82: 0 | J82: 1 | K82: 3 | L82: 2 | M82: 2 | N82: 2 | O82: =SUM(F82:N82) -> 15 | P82: 0.5 | Q82: 15.5 | R82: Резерв
A83: 80 | B83: Саенко Даниил Евгеньевич | C83: Колодин Никита Витальевич | E83: 9-11 класс | F83: 1 | G83: 1.5 | H83: 1.25 | I83: 0 | J83: 0 | K83: 3 | L83: 2.5 | M83: 2.5 | N83: 3 | O83: 14.75 | P83: 0.5 | Q83: 15.25 | R83: Резерв
A84: 81 | B84: Аминов Данила | C84: Кантинов Вячеслав | D84: Митрофанов Никита | E84: 9-11 класс | F84: 1 | G84: 2 | H84: 2 | I84: 0 | J84: 1.5 | K84: 1.5 | L84: 2 | M84: 2.5 | N84: 2 | O84: =SUM(F84:N84) -> 14.5 | P84: 0.5 | Q84: 15 | R84: Резерв
A85: 82 | B85: Дубенко Владислав Георгиевич | C85: Вострокнутов Дмитрий Александрович | D85: Калабин Дмитрий Владимирович | E85: 9-11 класс | F85: 2 | G85: 1.5 | H85: 1.25 | I85: 0 | J85: 1.25 | K85: 2 | L85: 2.25 | M85: 2 | N85: 2 | O85: =SUM(F85:N85) -> 14.25 | P85: 0.5 | Q85: 14.75 | R85: Резерв
A86: 83 | B86: Гапеева Татьяна Артуровна | C86: Фирсова Елизавета Андреевна | E86: 9-11 класс | F86: 1 | G86: 1 | H86: 1.5 | I86: 0 | J86: 0.5 | K86: 2 | L86: 2 | M86: 4 | N86: 1.5 | O86: 13.5 | P86: 0.5 | Q86: 14 | R86: Резерв
A87: 84 | B87: Жирова Анна | C87: Яшников Владислав | D87: Голых Максим | E87: 9-11 класс | F87: 1 | G87: 3 | H87: 2 | I87: 0 | J87: 1 | K87: 0 | L87: 1 | M87: 2 | N87: 3 | O87: =SUM(F87:N87) -> 13 | P87: 0.5 | Q87: 13.5 | R87: Резерв
A88: 85 | B88: Вахрушева Анастасия Юрьевна | C88: Братчикова Валерия Сергеевна | D88: Кадулин Максим Сергеевич | E88: 9-11 класс | F88: 1.75 | G88: 2 | H88: 2.25 | I88: 0 | J88: 1 | K88: 1.5 | L88: 2.25 | M88: 1 | N88: 1 | O88: =SUM(F88:N88) -> 12.75 | P88: 0.5 | Q88: 13.25 | R88: Резерв
A89: 86 | B89: Пшеницына Полина | C89: Егорычев Данила | D89: Зяблов Роман | E89: 9-11 класс | F89: 0.5 | G89: 3 | H89: 3 | I89: 0 | J89: 1 | K89: 0 | L89: 1 | M89: 1 | N89: 3 | O89: =SUM(F89:N89) -> 12.5 | P89: 0.5 | Q89: 13 | R89: Резерв
A90: 87 | B90: Шутов Даниил | C90: Каркотин Олег | E90: 9-11 класс | F90: 1 | G90: 1 | H90: 3 | I90: 0 | J90: 2 | K90: 0 | L90: 1 | M90: 3 | N90: 0 | O90: =SUM(F90:N90) -> 11 | P90: 0 | Q90: 11 | R90: Спасибо за участие
A91: 88 | B91: Обельчак Александр Андреевич | C91: Рязанцев Данил Алексеевич | D91: Горячкин Владислав Вячеславович | E91: 9-11 класс | F91: 0.5 | G91: 0.5 | H91: 1.5 | I91: 0 | J91: 1 | K91: 1 | L91: 0.5 | M91: 3 | N91: 1.5 | O91: 9.5 | P91: 0.5 | Q91: 10 | R91: Спасибо за участие
A92: 89 | B92: Лунев Денис Сергеевич | C92: Орехов Пётр Валерьевич | E92: 9-11 класс | F92: 1 | G92: 2 | H92: 1 | I92: 0 | J92: 1 | K92: 0 | L92: 2 | M92: 0 | N92: 2 | O92: =SUM(F92:N92) -> 9 | P92: 0.5 | Q92: 9.5 | R92: Спасибо за участие
A93: 90 | B93: Букирев Владислав Семёнович | C93: Денисенко Иван Павлович | D93: Деревенский Вячеслав Романович | E93: 9-11 класс | F93: 1 | G93: 2 | H93: 1 | I93: 0 | J93: 0.25 | K93: 1 | L93: 0.75 | M93: 0 | N93: 0.75 | O93: =SUM(F93:N93) -> 6.75 | P93: 0.5 | Q93: 7.25 | R93: Спасибо за участие
A94: 91 | B94: Николаюк Наталья Сергеевна | C94: Новожилов Максим Денисович | E94: Студенты | F94: 1 | G94: 1.5 | H94: 2 | I94: 2 | J94: 2.5 | K94: 2.5 | L94: 3 | M94: 5 | N94: 3 | O94: =SUM(F94:N94) -> 22.5 | P94: 0.5 | Q94: 23 | R94: Прошли в финал
A95: 92 | B95: Морозова Дарья Алексеевна | C95: Бобылев Данил Андреевич | D95: Хохрякова Екатерина Сергеевна | E95: Студенты | F95: 1.25 | G95: 2 | H95: 2 | I95: 2 | J95: 2 | K95: 2 | L95: 3 | M95: 3 | N95: 2 | O95: 19.25 | P95: 0.5 | Q95: 19.75 | R95: Прошли в финал
A96: 93 | B96: Егорова Екатерина Андреевна | C96: Каминская Владислава Александровна | D96: Малаев Евгений Валерьевич | E96: Студенты | F96: 1 | G96: 0.5 | H96: 0.5 | I96: 1 | J96: 3 | K96: 3 | L96: 3 | M96: 3.5 | N96: 3 | O96: =SUM(F96:N96) -> 18.5 | P96: 0.5 | Q96: 19 | R96: Прошли в финал
A97: 94 | B97: Калинин Тимофей Александрович | E97: Студенты | F97: 1.5 | G97: 2 | H97: 2 | I97: 3 | J97: 1 | K97: 0 | L97: 2.5 | M97: 3.5 | N97: 3 | O97: =SUM(F97:N97) -> 18.5 | P97: 0 | Q97: 18.5 | R97: Прошли в финал
A98: 95 | B98: Бабкин Артём Дмитриевич | C98: Докучаева Евгения Александровна | D98: Максимов Руслан Сергеевич | E98: Студенты | F98: 2 | G98: 2 | H98: 2 | I98: 2 | J98: 1 | K98: 2 | L98: 2 | M98: 3 | N98: 2 | O98: 18 | P98: 0.5 | Q98: 18.5 | R98: Прошли в финал
